[Event "USA Championship 2024"]
[Site "Saint Louis"]
[Date "2024.10.13"]
[Round "3.6"]
[White "Aronian, Levon"]
[Black "Liang, Awonder"]
[Result "0-1"]
[ECO "C84"]
[WhiteElo "2738"]
[BlackElo "2677"]
[Annotator "TA"]
[PlyCount "194"]
[EventDate "2024.10.09"]
[EventType "tourn"]
[EventCountry "USA"]
[SourceTitle "playchess.com"]
[Source "ChessBase"]
[SourceQuality "1"]
[TimeControl "40/5400+30:1800+30"]

{[%evp 18,194,16,5,10,19,25,3,15,13,17,16,11,0,13,0,0,-11,9,0,0,0,0,6,4,8,20,10,5,0,25,0,0,0,0,0,0,0,11,0,15,-60,-62,-46,-21,-51,-27,-52,-48,-119,-92,-77,-112,-122,-73,-65,-58,-62,-72,-89,-84,-131,-131,-131,-65,-70,-70,-82,-6,-310,-69,-68,-75,-68,-56,-77,-89,-73,-58,-42,-55,-166,-181,-167,-172,-177,-166,-156,-174,-216,-8,-158,-140,-125,-54,-48,-8,-22,0,-62,-56,-80,0,-3,0,-8,-8,-33,-12,-8,-8,-8,-8,-8,-8,-8,-8,-8,-12,-28,-28,-74,-132,-60,-83,-253,-377,-502,0,-148,0,-550,-610,-622,-613,-635,-481,-800,-468,-604,-610,-420,-547,-224,-628,-618,-629,-628,-625,-597,0,-572,-509,-592,-584,-576,-360,-360,-263,-321,-330,-322,-259,-812,-692,-1370,-1335,-1316,-1163,-6115,-4554,-5065,-4689,-1087,-5065,-29943,-12812,-12821,-5777]} 1. e4 {[%emt 0:00:32]} e5 {[%emt 0:00:06]} 2. Nf3 {[%emt 0:00:08]} Nc6 {[%emt 0:00:02]} 3. Bb5 {[%emt 0:00:08]} a6 {[%emt 0:00:08]} 4. Ba4 {[%emt 0:00:05]} Nf6 {[%emt 0:00:06]} 5. O-O {[%emt 0:00:06]} Be7 {[%emt 0:00:06]} 6. d3 {[%emt 0:00:04]} b5 {[%emt 0:05:44]} 7. Bb3 {[%emt 0:00:13]} d6 {[%emt 0:00:02]} 8. a3 {[%emt 0:00:07]} O-O {[%emt 0:06:31]} 9. Nc3 {[%emt 0:00:14][%cal Bb1c3,Bc3d5,Bd5e3][%mdl 32]} Bb7 {[%emt 0:00:26]} 10. Bg5 {[%emt 0:09:10]} Qd7 {[%emt 0:02:46]} 11. Re1 {[%emt 0:02:02]} Rfe8 {[%emt 0:03:28]} 12. Ba2 {[%emt 0:05:49]} h6 {[%emt 0:07:03] The position is equal.} 13. Bxf6 {[%emt 0:01:38]} Bxf6 {[%emt 0:00:08]} 14. Nd5 {[%emt 0:00:02]} Bd8 {[%emt 0:04:57]} 15. c3 {[%emt 0:00:06] Against Nd4} Ne7 {[%emt 0:02:02][%cal Bc6e7,Be7g6,Bg6f4][%mdl 32]} 16. Ne3 {[%emt 0:00:47]} Ng6 {[%emt 0:00:31] Prevents Nh4.} 17. Qc2 {[%emt 0:17:25]} Bf6 {[%emt 0:05:27]} 18. Rad1 {[%emt 0:02:57]} Nf4 {[%emt 0:02:36]} 19. g3 {[%emt 0:01:56]} Qh3 {[%emt 0:05:02][%cal Oh3h5]} 20. Kh1 {[%emt 0:08:56]} Qh5 {[%emt 0:01:06]} 21. Ng1 {[%emt 0:01:01]} Ne6 {[%emt 0:00:23]} 22. f3 {[%emt 0:01:03]} Rad8 {[%emt 0:02:08]} 23. Qf2 {[%emt 0:03:27]} Bg5 {[%emt 0:06:36]} 24. d4 {[%emt 0:06:08]} Bxe3 {[%emt 0:04:19]} 25. Rxe3 {[%emt 0:01:45]} exd4 {[%emt 0:00:41]} 26. cxd4 {[%emt 0:00:34]} d5 {[%emt 0:01:31]} (26... c5 {is interesting.} 27. Ne2 Ng5 28. Nf4 Nh3) 27. e5 {[%emt 0:09:31]} c5 {[%emt 0:00:36]} 28. Ne2 {[%emt 0:00:05]} Rc8 {[%emt 0:15:58]} 29. Nf4 {[%emt 0:10:09]} ({White should try} 29. g4 $11 Qg5 30. h4) 29... Nxf4 $15 {[%emt 0:00:21]} 30. gxf4 {[%emt 0:00:05]} cxd4 {[%emt 0:00:43]} 31. Red3 {[%emt 0:01:28] [#]} Rc4 $1 {[%emt 0:02:37][%cal Ob5b4]} 32. Rg1 {[%emt 0:10:30]} (32. Rf1 Rc5) 32... Re6 {[%emt 0:01:31]} 33. Bb1 {[%emt 0:02:16]} ({White should play} 33. Rf1 $15) 33... Rec6 {[%emt 0:02:38]} 34. Rdd1 {[%emt 0:01:23][%cal Of4f5] [#]} d3 $1 {[%emt 0:01:25]} 35. f5 {[%emt 0:01:21]} (35. Rxd3 d4) 35... Rf4 {[%emt 0:06:53] Black is more active.} (35... Qxf5 $6 36. Bxd3 Qf4 (36... Qxe5 $2 37. Rde1 $18) 37. Bxc4 bxc4 38. Qg3 (38. Rxd5 $2 Rc8 $19) 38... Qxg3 39. hxg3 $11 (39. Rxg3 Rb6 $11)) (35... Rc2 $142 $1 {[%cal Rc2f2]} 36. Qg3 (36. Bxc2 $2 Rxc2 $19) 36... Qg5 37. Rxd3 Rxb2) 36. Bxd3 $17 {[%emt 0:03:30]} Qxf3+ {[%emt 0:05:15]} (36... Rxf3 $2 37. Qg2 g6 38. fxg6 (38. Be2 Rc2 $18) 38... Rxg6 39. Bxg6 fxg6 40. Qxg6+ Qxg6 41. Rxg6+ Kh7 42. Rd6 $18) 37. Qxf3 {[%emt 0:00:06]} Rxf3 {[%emt 0:00:01]} 38. f6 {[%emt 0:00:06]} g5 {[%emt 0:01:57]} 39. Rge1 {[%emt 0:00:08]} (39. Rg3 $142 Rf4 40. Kg1) 39... Rf2 {[%emt 0:02:11]} 40. Kg1 {[%emt 0:01:44]} Rxb2 {[%emt 0:00:17]} ({Better is} 40... Rf4 $1 $17 41. Bb1 Rg4+ 42. Kf1 Rcc4) 41. Rc1 $1 $15 {[%emt 0:12:18]} Rb3 {[%emt 0:04:10][%csl LRa3,LRd3]} 42. e6 {[%emt 0:05:08]} fxe6 {[%emt 0:09:45]} (42... Rxd3 43. e7 $16) (42... Rxe6 $17 43. Rxe6 fxe6) 43. Bg6 $2 {[%emt 0:00:46][%mdl 8192]} (43. Rxc6 $11 {and White is okay.} Bxc6 44. Bg6) 43... Rxc1 $2 {[%emt 0:01:01]} (43... Rxa3 $2 44. Rxc6 Bxc6 45. Rxe6 Ra1+ 46. Kf2 $18) (43... Re3 $1 $19 44. Rxe3 Rxc1+ 45. Kf2 Rc6) 44. Rxc1 $19 {[%emt 0:00:04][%mdl 4096] Endgame. KRB-KRB} Rf3 $1 {[%emt 0:00:06]} (44... Rxa3 45. Re1 Bc8 46. f7+ Kf8 47. Rc1 $16) 45. Rc7 {[%emt 0:00:38]} Rxf6 {[%emt 0:00:06]} 46. Bh7+ {[%emt 0:00:03]} Kf8 {[%emt 0:00:05]} 47. Rxb7 $17 {[%emt 0:00:03] KRB-KR} Rf7 {[%emt 0:00:09]} 48. Rb8+ {[%emt 0:01:21]} Kg7 {[%emt 0:00:04]} 49. Bd3 {[%emt 0:02:07]} (49. Bg8 $1 $15 Re7 50. Kf2) 49... Rf3 $19 {[%emt 0:01:22]} 50. Be2 {[%emt 0:01:05]} Rxa3 {[%emt 0:00:06]} 51. Bg4 {[%emt 0:02:40]} Kf6 {[%emt 0:00:08]} 52. Rb6 {[%emt 0:02:11]} Ke5 {[%emt 0:00:02]} (52... Ra1+ 53. Kf2 $16) 53. Bxe6 {[%emt 0:00:51]} Rf3 $2 {[%emt 0:02:51]} (53... b4 $1 $19 {...b3 would now be deadly.} 54. Bg8 b3 55. Rxh6 b2) 54. Bg8 {[%emt 0:00:47]} ({Only move:} 54. Bc8 $1 $11) 54... Rf6 {[%emt 0:00:49]} 55. Rb8 {[%emt 0:01:25]} Kd4 {[%emt 0:07:41]} (55... d4 $17 {White must now prevent ...Ke4.} 56. Re8+ Kd6) 56. Rd8 $15 {[%emt 0:00:20]} Rf5 {[%emt 0:00:12]} 57. Ra8 $1 {[%emt 0:00:19]} Rf6 {[%emt 0:00:01]} 58. Rd8 {[%emt 0:00:06]} Kc3 {[%emt 0:00:18] And now ...d4 would win.} 59. Rxd5 {[%emt 0:00:55]} b4 {[%emt 0:00:11]} (59... Rb6 $17) 60. Rc5+ $11 {[%emt 0:06:12]} Kb2 {[%emt 0:00:07]} 61. Kg2 {[%emt 0:01:19]} b3 {[%emt 0:03:09]} 62. Ra5 {[%emt 0:00:15]} (62. Bc4 $5) 62... Kc3 {[%emt 0:00:40][%mdl 1024] Black has compensation.} 63. Ra3 $1 {[%emt 0:00:29]} Rb6 {[%emt 0:00:06]} 64. Kf2 $1 {[%emt 0:00:28]} (64. Bxb3 Kb2 $17 (64... Rxb3 65. Rxa6 Rb2+ 66. Kg3 $11) (64... Rxb3 65. Rxa6 h5 66. Ra5 $11)) 64... h5 {[%emt 0:03:48]} 65. Ke2 {[%emt 0:01:13]} g4 {[%emt 0:00:48]} 66. Ra4 {[%emt 0:00:09]} Kc2 {[%emt 0:01:26]} 67. Bf7 {[%emt 0:00:48]} Rc6 {[%emt 0:03:44]} 68. Bd5 {[%emt 0:00:37]} Rd6 {[%emt 0:00:31]} 69. Rc4+ {[%emt 0:00:53]} (69. Bg8 $1 $11 {was preferrable.}) 69... Kb2 $17 {[%emt 0:00:14]} 70. Bf7 {[%emt 0:00:20]} Ka3 $1 {[%emt 0:02:03] Wards off Rb4} 71. Rc1 $2 {[%emt 0:00:16]} (71. Rc3 $17 Rb6 72. Re3 (72. Bxh5 Re6+ 73. Kd2 Rd6+ 74. Ke1 a5 $15)) 71... Rf6 $19 {[%emt 0:01:03]} 72. Bd5 {[%emt 0:00:39]} Rd6 $2 {[%emt 0:02:36]} (72... a5 73. Ra1+ Kb4 74. Bxb3 $11) (72... Rf5 $19 {has better winning chances.} 73. Bg8 a5 74. Ra1+ Kb4 (74... Kb2 75. Ra4 $17)) 73. Bf7 $1 $17 {[%emt 0:00:12] [#]} Rf6 $2 {[%emt 0:00:04][%mdl 8192]} (73... b2 $1 $17 {[%cal Rb2c1]} 74. Rc3+ Ka4) 74. Bd5 $1 $19 {[%emt 0:00:03] [#]} Rf5 $1 {[%emt 0:00:28]} (74... a5 75. Ra1+ Kb4 76. Bxb3 $11) 75. Bg8 {[%emt 0:00:51]} a5 {[%emt 0:00:09]} 76. Kd3 {[%emt 0:00:42]} a4 {[%emt 0:00:09]} 77. Bh7 {[%emt 0:01:06]} (77. Kc4 $142 Rf8 78. Be6) 77... Rf2 {[%emt 0:00:09][%cal Oa3b2]} 78. Kc3 {[%emt 0:00:11]} Rf3+ {[%emt 0:00:26]} (78... Rxh2 79. Ra1+ Ra2 80. Rg1 $11) 79. Kc4 {[%emt 0:00:25]} Rf7 {[%emt 0:01:44] ( -> ...Rc7+)} 80. Ra1+ {[%emt 0:00:15]} Kb2 {[%emt 0:00:02]} 81. Rb1+ {[%emt 0:00:04]} Ka2 {[%emt 0:00:03]} 82. Bg6 {[%emt 0:01:01]} Rf6 {[%emt 0:00:02]} 83. Bh7 {[%emt 0:00:18]} Rf7 {[%emt 0:00:57]} 84. Bg6 {[%emt 0:00:04][%csl LRf7,LRh5]} Rf4+ {[%emt 0:01:36]} 85. Kc3 {[%emt 0:00:08]} Rf6 {[%emt 0:00:07]} 86. Bh7 {[%emt 0:01:09]} Rf7 {[%emt 0:01:00]} 87. Bg6 {[%emt 0:00:02] Rb2+ would kill now.} Rg7 {[%emt 0:00:09]} 88. Bf5 {[%emt 0:00:50]} Rc7+ {[%emt 0:01:05]} 89. Kb4 {[%emt 0:00:18][%cal Ob1f1]} b2 {[%emt 0:00:31] Strongly threatening ...Rc1.} (89... a3 90. Re1 $11) 90. Re1 $2 {[%emt 0:01:36]} (90. Kxa4 $2 {is the wrong capture.} Rc1 $19) (90. Rg1 Rc1 91. Rg3 b1=Q+ (91... b1=R+ 92. Bxb1+ Kxb1 93. h3 $11) 92. Bxb1+ Kxb1 93. h3 (93. Kxa4 Kc2 $15)) 90... Rc1 {[%emt 0:00:27]} 91. Re3 {[%emt 0:00:42][%csl Gb4][%cal Re3a3]} b1=Q+ {[%emt 0:00:21]} 92. Bxb1+ {[%emt 0:00:02]} Kxb1 {[%emt 0:00:25]} 93. Kxa4 {[%emt 0:00:57] KR-KR} Kc2 {[%emt 0:00:28] ...Rh1 is the strong threat.} 94. Kb4 {[%emt 0:00:25]} Kd2 {[%emt 0:00:31]} 95. Re5 {[%emt 0:00:36]} h4 {[%emt 0:00:05] Threatens to win with ...g3.} 96. Re4 {[%emt 0:00:32]} Rg1 {[%emt 0:00:27]} (96... g3 $142 97. Rg4 Rg1 (97... gxh2 $2 98. Rg2+ Kd3 99. Rxh2 $19) 98. hxg3 hxg3 99. Kb3 Ke3 100. Rg8 Kf3 101. Rf8+ Kg2 102. Re8 Rf1 103. Kc4 Rf7 104. Kd5 Kf2 105. Ke6 Rf3 106. Rc8 g2 107. Rc1 g1=Q (107... g1=R $2 108. Rc2+ Kg3 109. Rd2 $19) 108. Rxg1 Kxg1 109. Ke5 Kf2 110. Ke4 Rh3 111. Ke5 Ke3 112. Ke6 Kd4 113. Kf5 Re3 114. Kf6 Re5 115. Kg6 Kd5 116. Kf6 Kd6 117. Kf7 Re6 118. Kf8 Re7 119. Kg8 Ke5 120. Kf8 Kf6 121. Kg8 Re8+ 122. Kh7 Rf8 123. Kh6 Rh8#) 97. Kc4 {[%emt 0:00:28]} h3 {[%emt 0:00:07] Weighted Error Value: White=0.25 (precise) /Black=0.25 (precise) .  Loses game:     	White=2     	---        Missed win:     	---       	Black=3      Mistake:       	White=7     	Black=6      Inaccurate:     	White=3     	Black=1      OK:         	White=27    	Black=27     Best:        	White=9     	Black=11     Strong:       	White=6     	Black=3} (97... g3 $142 98. hxg3 hxg3) 0-1